bitfinex/quotes_SOLUSD_20241110
["timestamp","ask_amount","ask_price","bid_price","bid_amount"]
[1731227023589,0.09999656,205.16,205.0,9.11910007]
[1731227023795,9.11910007,205.07,205.01,9.11910007]
[1731227024302,9.11910007,205.07,204.95,4.883]
[1731227024303,9.11910007,205.02,204.92,22.0026]
[1731227024506,9.11910007,204.97,204.92,22.0026]
[1731227024817,9.11910007,204.98,204.92,31.12170007]
[1731227026116,0.12549,205.07,204.92,31.12170007]
[1731227026117,9.11910007,204.97,204.92,31.12170007]
[1731227026724,9.11910007,204.97,204.92,22.0026]
[1731227028907,9.11910007,204.95,204.92,22.0026]
[1731227029108,9.11910007,204.95,204.89,9.11910007]
[1731227029322,9.11910007,204.95,204.9,23.776884]
[1731227029903,9.11910007,204.94,204.9,23.776884]
[1731227030306,9.11910007,204.94,204.89,23.776884]
[1731227031323,9.11910007,204.95,204.9,23.776884]
[1731227036940,9.11910007,204.94,204.88,9.11910007]
[1731227037255,9.11910007,204.92,204.87,26.03078964]
[1731227037443,9.11910007,204.91,204.87,22.0026]
[1731227037829,9.11910007,204.88,204.87,15.4083]
[1731227038044,9.11910007,204.88,204.82,26.07879312]
[1731227038231,0.12549,204.99,204.82,22.0026]
[1731227038232,9.11910007,204.87,204.82,22.0026]
[1731227038523,9.11910007,204.88,204.82,22.0026]
[1731227038846,0.12549,204.99,204.82,22.0026]
[1731227038847,0.12549,204.99,204.87,9.11910007]
[1731227039043,9.11910007,204.93,204.87,9.11910007]
[1731227039247,9.11910007,204.93,204.82,22.0026]
[1731227039454,9.11910007,204.93,204.88,9.11910007]
[1731227039635,9.11910007,204.94,204.88,9.11910007]
[1731227041246,9.11910007,204.93,204.88,9.11910007]
[1731227042046,16.5556,205.0,204.9,32.89598407]
[1731227042251,0.09999656,205.06,204.9,32.89598407]
[1731227042252,16.1401,205.05,204.92,9.11910007]
[1731227042429,9.11910007,204.98,204.92,9.11910007]
[1731227043267,16.1401,205.05,204.93,9.11910007]
[1731227043447,9.11910007,205.02,204.96,9.11910007]
[1731227043656,9.11910007,205.01,204.95,9.11910007]
[1731227043943,9.11910007,204.99,204.93,9.11910007]
[1731227044454,9.11910007,204.97,204.92,23.776884]
[1731227044928,9.11910007,204.97,204.91,9.11910007]
[1731227045117,9.11910007,204.94,204.9,21.7127]
[1731227046631,9.11910007,204.93,204.88,9.11910007]
[1731227047326,0.12549,204.99,204.89,9.11910007]
[1731227047512,9.11910007,204.98,204.92,9.11910007]
[1731227047922,9.11910007,204.96,204.86,23.776884]
[1731227048126,9.11910007,204.98,204.92,9.11910007]
[1731227048313,6.1917,205.03,204.92,9.11910007]
[1731227048622,9.11910007,205.0,204.94,9.11910007]
[1731227048926,9.11910007,205.01,204.95,9.11910007]
[1731227049326,14.26143967,205.01,204.95,14.26143967]
[1731227049519,14.26143967,205.02,204.97,14.26143967]
[1731227050019,14.26143967,205.03,204.97,14.26143967]
[1731227050530,14.26143967,205.02,204.97,14.26143967]
[1731227050938,14.26143967,205.04,204.98,14.26143967]
[1731227051426,14.26143967,205.04,204.99,14.26143967]
[1731227051633,14.26143967,205.06,205.0,14.26143967]
[1731227051836,14.26143967,205.07,205.01,14.26143967]
[1731227052136,14.26143967,205.06,205.01,14.26143967]
[1731227052521,14.26143967,205.06,205.0,14.26143967]
[1731227055920,14.26143967,205.07,205.01,14.26143967]
[1731227056324,14.26143967,205.06,205.0,14.26143967]
[1731227056527,14.26143967,205.07,205.01,14.26143967]
[1731227056735,14.26143967,205.06,205.0,14.26143967]
[1731227057229,14.26143967,205.08,205.02,14.26143967]
[1731227058243,14.26143967,205.07,205.01,14.26143967]
[1731227058733,14.26143967,205.06,205.0,14.26143967]
[1731227059624,14.26143967,205.05,204.99,14.26143967]
[1731227060014,14.26143967,205.02,204.96,14.26143967]
[1731227060222,14.26143967,204.99,204.93,35.97413967]
[1731227060420,14.26143967,205.01,204.95,14.26143967]
[1731227060638,14.26143967,205.02,204.96,14.26143967]
[1731227061623,14.26143967,205.01,204.95,14.26143967]
[1731227063317,14.26143967,204.99,204.94,23.776884]
[1731227063517,14.26143967,204.98,204.94,23.776884]
[1731227065745,14.26143967,204.99,204.94,23.776884]
[1731227069438,9.12896882,204.99,204.94,23.776884]
[1731227069851,0.12549,205.05,204.94,32.90585282]
[1731227070032,9.12896882,204.99,204.94,32.90585282]
[1731227073637,9.12896882,204.96,204.88,21.7351]
[1731227073848,9.12896882,204.96,204.9,9.12896882]
[1731227074145,9.12896882,204.97,204.91,9.12896882]
[1731227076746,9.12896882,204.98,204.92,9.12896882]
[1731227076930,0.12549,205.05,204.94,9.12896882]
[1731227077134,16.1401,205.06,204.95,32.90585282]
[1731227077334,9.12896882,205.03,204.97,9.12896882]
[1731227078444,9.12896882,205.02,204.96,9.12896882]
[1731227078645,9.12896882,205.01,204.96,9.12896882]
[1731227079027,9.12896882,204.97,204.89,23.776884]
[1731227079227,0.12549,205.05,204.93,23.776884]
[1731227079228,9.12896882,204.98,204.93,23.776884]
[1731227079638,9.12896882,204.99,204.93,9.12896882]
[1731227079838,9.12896882,205.0,204.94,9.12896882]
[1731227080268,9.12896882,204.99,204.93,9.12896882]
[1731227080438,9.12896882,204.98,204.93,9.12896882]
[1731227082331,9.12896882,204.95,204.89,23.776884]
[1731227082651,9.12896882,204.99,204.93,32.90585282]
[1731227082960,9.12896882,205.0,204.94,9.12896882]
[1731227083141,16.1401,205.06,204.94,9.12896882]
[1731227083456,9.12896882,205.02,204.96,9.12896882]
[1731227083751,9.12896882,205.01,204.95,32.90585282]
[1731227083944,9.12896882,205.0,204.95,23.776884]
[1731227084536,9.12896882,204.99,204.94,23.776884]
[1731227085456,9.12896882,204.97,204.91,9.12896882]
[1731227086153,9.12896882,204.96,204.88,21.7351]
[1731227086359,9.12896882,204.95,204.89,9.12896882]
[1731227086743,9.12896882,204.95,204.9,23.776884]
[1731227086944,0.12549,205.05,204.9,32.90585282]
[1731227087154,9.12896882,204.96,204.9,32.90585282]
[1731227087364,9.12896882,204.97,204.91,9.12896882]
[1731227087653,16.1401,205.06,204.94,9.12896882]
[1731227087858,16.1401,205.06,204.95,32.90585282]
[1731227088039,9.12896882,205.01,204.95,32.90585282]
[1731227088460,9.12896882,205.0,204.95,23.776884]
[1731227088761,0.12549,205.05,204.95,23.776884]
[1731227088945,9.12896882,205.02,204.97,9.12896882]
[1731227090353,9.12896882,205.04,204.98,32.90585282]
[1731227090548,15.6955,205.11,204.99,9.12896882]
[1731227090751,9.12896882,205.06,205.0,32.90585282]
[1731227092158,9.12896882,205.06,205.0,23.776884]
[1731227092352,9.12896882,205.06,205.0,32.90585282]
[1731227092553,9.12896882,205.05,205.0,32.90585282]
[1731227092758,9.12896882,205.05,205.0,23.776884]
[1731227093156,9.12896882,205.04,205.0,23.776884]
[1731227093463,9.12896882,205.04,204.99,23.776884]
[1731227094340,9.12896882,205.05,204.99,32.90585282]
[1731227094546,0.12549,205.1,205.0,9.12896882]
[1731227094857,9.12896882,205.05,205.0,9.12896882]
[1731227095448,9.12896882,205.05,204.99,9.12896882]
[1731227095649,9.12896882,205.05,205.0,23.776884]
[1731227097163,9.12896882,205.03,204.96,22.1467]
[1731227097365,9.12896882,205.01,204.96,22.1467]
[1731227099068,9.12896882,205.0,204.96,22.1467]
[1731227099265,9.12896882,204.98,204.96,22.1467]
[1731227100171,9.12896882,204.99,204.96,22.1467]
[1731227100354,9.12896882,205.0,204.96,22.1467]
[1731227101971,9.12896882,204.99,204.96,22.1467]
[1731227102471,9.12896882,205.0,204.96,22.1467]
[1731227102878,0.12549,205.08,204.96,22.1467]
[1731227103366,9.12896882,205.0,204.96,22.1467]
[1731227103560,9.12896882,205.01,204.96,22.1467]
[1731227103779,0.12549,205.08,204.97,9.12896882]
[1731227103983,9.12896882,205.03,204.97,9.12896882]
[1731227104161,36.51587528,205.1,204.98,23.776884]
[1731227104468,15.6955,205.11,204.99,9.12896882]
[1731227104651,15.6955,205.11,205.0,32.90585282]
[1731227104851,9.12896882,205.06,205.0,32.90585282]
[1731227105052,9.12896882,205.05,205.0,32.90585282]
[1731227105765,36.64136528,205.1,205.0,32.90585282]
[1731227105766,0.12549,205.1,205.01,9.12896882]
[1731227106073,9.12896882,205.06,205.01,9.12896882]
[1731227106275,9.12896882,205.05,205.0,32.90585282]
[1731227109282,9.12896882,205.05,205.0,23.776884]
[1731227111763,9.12896882,205.03,204.97,9.12896882]
[1731227112170,9.12896882,205.02,204.98,23.776884]
[1731227113280,9.12896882,205.04,204.98,32.90585282]
[1731227113468,0.12549,205.1,205.0,23.776884]
[1731227113669,9.12896882,205.05,205.0,23.776884]
[1731227114463,0.12549,205.1,205.0,23.776884]
[1731227114787,9.12896882,205.04,205.0,23.776884]
[1731227115157,9.12896882,205.01,204.96,22.1467]
[1731227115374,9.12896882,205.02,204.97,23.776884]
[1731227115577,9.12896882,205.01,204.97,23.776884]
[1731227115877,9.12896882,204.99,204.97,23.776884]
[1731227116383,9.12896882,204.98,204.91,22.2614]
[1731227116568,9.12896882,204.95,204.91,22.2614]
[1731227118178,9.12896882,204.95,204.92,23.776884]
[1731227118976,0.12549,205.05,204.92,23.776884]
[1731227119178,9.12896882,204.95,204.92,23.776884]
[1731227120783,9.12896882,204.96,204.92,23.776884]
[1731227121964,9.12896882,204.95,204.92,23.776884]
[1731227123270,9.12896882,204.94,204.92,23.776884]
[1731227123664,9.12896882,204.95,204.92,23.776884]
[1731227123864,9.12896882,204.93,204.91,15.7194]
[1731227124065,9.12896882,204.92,204.9,5.0]
[1731227124266,9.12896882,204.91,204.9,5.0]
[1731227127267,0.12549,204.99,204.9,5.0]
[1731227127492,9.12896882,204.91,204.9,5.0]
[1731227129463,45.6448441,204.91,204.9,5.0]
[1731227130678,45.7703341,204.91,204.9,5.0]
[1731227132288,0.12549,204.9,204.81,22.6452]
[1731227132470,9.12896882,204.83,204.81,22.6452]
[1731227133065,0.09999656,204.94,204.81,22.6452]
[1731227133271,9.12896882,204.87,204.81,31.77416882]
[1731227133489,9.12896882,204.87,204.82,9.12896882]
[1731227133872,9.12896882,204.87,204.81,31.77416882]
[1731227134487,9.12896882,204.86,204.81,22.6452]
[1731227137593,9.12896882,204.86,204.81,31.77416882]
[1731227138893,0.12549,204.94,204.82,23.776884]
[1731227139095,9.12896882,204.88,204.82,32.90585282]
[1731227139388,0.12549,204.94,204.83,9.12896882]
[1731227139570,9.12896882,204.89,204.83,9.12896882]
[1731227139776,9.12896882,204.88,204.83,9.12896882]
[1731227140476,9.12896882,204.88,204.82,23.776884]
[1731227140676,9.12896882,204.87,204.82,23.776884]
[1731227142277,9.12896882,204.86,204.82,23.776884]
[1731227142677,9.12896882,204.87,204.82,23.776884]
[1731227143985,9.12896882,204.88,204.82,32.90585282]
[1731227147191,9.12896882,204.87,204.82,23.776884]
[1731227147981,9.12896882,204.86,204.82,23.776884]
[1731227149293,9.12896882,204.88,204.82,32.90585282]
[1731227149690,0.12549,204.94,204.84,9.12896882]
[1731227149890,9.12896882,204.89,204.84,9.12896882]
[1731227151006,9.12896882,204.89,204.83,9.12896882]
[1731227151182,9.12896882,204.89,204.82,23.776884]
[1731227151183,6.23599656,204.98,204.85,9.12896882]
[1731227151385,56.75977147,205.0,204.87,9.12896882]
[1731227151697,9.12896882,204.92,204.87,9.12896882]
[1731227152284,9.12896882,204.92,204.86,9.12896882]
[1731227152605,9.12896882,204.91,204.86,23.776884]
[1731227153791,0.12549,204.99,204.87,9.12896882]
[1731227153992,9.12896882,204.92,204.87,9.12896882]
[1731227154427,9.12896882,204.92,204.86,32.90585282]
[1731227154811,0.12549,204.99,204.87,9.12896882]
[1731227155000,9.12896882,204.93,204.87,9.12896882]
[1731227155415,9.12896882,204.92,204.86,32.90585282]
[1731227155819,0.12549,204.99,204.86,32.90585282]
[1731227156023,0.12549,204.99,204.89,24.73826882]
[1731227156214,0.09999656,205.02,204.9,9.12896882]
[1731227156416,9.12896882,204.94,204.89,15.6093]
[1731227159215,0.22548656,205.02,204.89,24.73826882]
[1731227159391,0.22548656,205.02,204.89,19.67008588]
[1731227159590,0.22548656,205.02,204.78,0.1]
[1731227159591,45.6448441,204.9,204.84,15.6093]
[1731227159897,9.12896882,204.86,204.84,15.6093]
[1731227160996,9.12896882,204.87,204.84,15.6093]
[1731227161312,9.12896882,204.88,204.84,15.6093]
[1731227162501,9.12896882,204.87,204.84,15.6093]
[1731227163211,9.12896882,204.88,204.84,15.6093]
[1731227163717,0.12549,204.96,204.84,15.6093]
[1731227163892,9.12896882,204.91,204.85,9.12896882]
[1731227164610,9.12896882,204.9,204.84,15.6093]
[1731227164797,9.12896882,204.9,204.85,9.12896882]
[1731227165303,9.12896882,204.88,204.83,6.4422]
[1731227165610,0.22548656,204.96,204.83,6.4422]
[1731227165611,9.12896882,204.87,204.83,6.4422]
[1731227166000,9.12896882,204.88,204.83,15.57116882]
[1731227167911,9.12896882,204.88,204.83,6.4422]
[1731227168212,9.12896882,204.86,204.83,6.4422]
[1731227170506,9.12896882,204.87,204.83,6.4422]
[1731227170710,9.12896882,204.88,204.83,6.4422]
[1731227171801,0.12549,204.96,204.85,9.12896882]
[1731227172001,9.12896882,204.9,204.85,9.12896882]
[1731227172497,9.12896882,204.9,204.84,9.12896882]
[1731227173115,9.12896882,204.89,204.83,15.57116882]
[1731227174525,9.12896882,204.9,204.84,9.12896882]
[1731227174818,9.12896882,204.91,204.85,9.12896882]
[1731227176402,9.12896882,204.9,204.84,32.90585282]
[1731227177012,9.12896882,204.91,204.84,32.90585282]
[1731227177423,9.12896882,204.9,204.84,32.90585282]
[1731227178303,9.12896882,204.9,204.84,23.776884]
[1731227178619,9.12896882,204.87,204.83,6.4422]
[1731227178804,9.12896882,204.84,204.81,16.099]
[1731227179001,9.12896882,204.82,204.81,16.099]
[1731227179721,9.12896882,204.82,204.78,6.2511]
[1731227179905,9.12896882,204.8,204.78,6.2511]
[1731227180106,0.12549,204.89,204.78,6.2511]
[1731227180107,9.12896882,204.81,204.78,6.2511]
[1731227181102,9.12896882,204.8,204.76,23.776884]
[1731227181328,9.12896882,204.8,204.75,23.776884]
[1731227182526,9.12896882,204.81,204.75,9.12896882]
[1731227183018,9.12896882,204.82,204.76,9.12896882]
[1731227183228,0.12549,204.89,204.78,24.89556882]
[1731227183530,15.0237,204.91,204.8,9.12896882]
[1731227183823,9.12896882,204.86,204.8,9.12896882]
[1731227184320,9.12896882,204.87,204.81,9.12896882]
[1731227184529,9.12896882,204.88,204.82,9.12896882]
[1731227187118,21.3465,204.96,204.81,9.12896882]
[1731227187119,9.12896882,204.87,204.81,9.12896882]
[1731227187330,9.12896882,204.85,204.79,15.14066882]
[1731227187701,9.12896882,204.82,204.79,6.0117]
[1731227191917,9.12896882,204.81,204.79,6.0117]
[1731227194009,9.12896882,204.82,204.79,6.0117]
[1731227194213,9.12896882,204.84,204.79,6.0117]
[1731227194414,0.09999656,204.93,204.8,9.12896882]
[1731227194627,9.12896882,204.88,204.82,9.12896882]
[1731227195522,9.12896882,204.87,204.81,9.12896882]
[1731227196617,9.12896882,204.85,204.79,6.0117]
[1731227196827,9.12896882,204.84,204.79,15.14066882]
[1731227197018,9.12896882,204.84,204.79,6.0117]
[1731227197233,9.12896882,204.83,204.79,6.0117]
[1731227198940,36.51587528,204.9,204.71,5.06277566]
[1731227198941,45.6448441,204.8,204.71,5.06277566]
[1731227199229,9.12896882,204.73,204.71,5.06277566]
[1731227199434,36.51587528,204.8,204.71,5.06277566]
[1731227199435,9.12896882,204.72,204.71,5.06277566]
[1731227201421,14.30210436,204.72,204.71,5.06277566]
[1731227202638,14.30210436,204.72,204.7,4.4]
[1731227202833,14.30210436,204.73,204.7,4.4]
[1731227203331,14.30210436,204.75,204.7,4.4]
[1731227203531,0.09999656,204.84,204.71,14.30210436]
[1731227203722,14.30210436,204.76,204.7,18.70210436]
[1731227204113,14.30210436,204.75,204.7,4.4]
[1731227207054,14.30210436,204.75,204.7,18.70210436]
[1731227207623,0.09999656,204.9,204.74,14.30210436]
[1731227207827,0.09999656,204.9,204.75,14.30210436]
[1731227207828,14.30210436,204.81,204.75,14.30210436]
[1731227208141,14.30210436,204.8,204.74,14.30210436]
[1731227210733,14.30210436,204.79,204.73,14.30210436]
[1731227211123,14.30210436,204.78,204.73,14.30210436]
[1731227212040,14.30210436,204.76,204.7,18.70210436]
[1731227212343,14.30210436,204.75,204.7,4.4]
[1731227212740,14.30210436,204.74,204.7,4.4]
[1731227214346,14.30210436,204.75,204.7,4.4]
[1731227214526,14.30210436,204.75,204.7,18.70210436]
[1731227214927,14.30210436,204.77,204.71,14.30210436]
[1731227215933,14.30210436,204.78,204.73,14.30210436]
[1731227216349,14.30210436,204.77,204.72,14.30210436]
[1731227216544,14.30210436,204.76,204.71,14.30210436]
[1731227216725,14.30210436,204.76,204.7,18.70210436]
[1731227217047,14.30210436,204.76,204.71,14.30210436]
[1731227217342,14.30210436,204.77,204.72,14.30210436]
[1731227217941,0.12549,204.86,204.7,4.4]
[1731227218147,14.30210436,204.81,204.71,23.776884]
[1731227218349,14.30210436,204.83,204.77,14.30210436]
[1731227219043,14.30210436,204.79,204.74,14.30210436]
[1731227219547,14.30210436,204.78,204.72,14.30210436]
[1731227219740,14.30210436,204.78,204.73,23.776884]
[1731227220748,14.30210436,204.77,204.72,14.30210436]
[1731227221831,0.22549,204.89,204.71,23.776884]
[1731227221832,14.30210436,204.81,204.71,23.776884]
[1731227222031,14.30210436,204.8,204.75,14.30210436]
[1731227222238,14.30210436,204.79,204.74,14.30210436]
[1731227226341,14.30210436,204.78,204.71,23.776884]
[1731227226653,14.30210436,204.78,204.72,14.30210436]
[1731227226950,14.30210436,204.76,204.71,38.07898836]
[1731227227151,14.30210436,204.74,204.7,4.4]
[1731227227337,14.30210436,204.73,204.7,4.4]
[1731227229354,14.30210436,204.75,204.7,18.70210436]
[1731227229659,14.30210436,204.74,204.7,4.4]
[1731227230330,14.30210436,204.75,204.7,4.4]
[1731227230735,14.30210436,204.74,204.7,4.4]
[1731227232753,14.30210436,204.73,204.7,4.4]
[1731227233446,9.15222664,204.73,204.7,4.4]
[1731227234054,9.15222664,204.72,204.7,4.4]
[1731227235159,9.15222664,204.71,204.7,4.4]
[1731227237363,28.62122348,204.71,204.7,4.4]
[1731227237743,28.74671348,204.71,204.7,4.4]
[1731227238060,0.12549,204.7,204.58,15.3511]
[1731227238241,14.31061174,204.62,204.58,15.3511]
[1731227240045,14.31061174,204.67,204.61,14.31061174]
[1731227240352,14.31061174,204.69,204.63,14.31061174]
[1731227240553,14.31061174,204.7,204.64,14.31061174]
[1731227240861,14.31061174,204.69,204.63,14.31061174]
[1731227241159,5.0324442,204.8,204.64,20.45891174]
[1731227241365,14.31061174,204.73,204.67,14.31061174]
[1731227241665,14.31061174,204.71,204.66,23.776884]
[1731227241963,14.31061174,204.68,204.65,15.714]
[1731227242262,11.11720886,204.81,204.67,14.31061174]
[1731227242562,14.31061174,204.73,204.67,14.31061174]
[1731227242763,6.0802,204.81,204.65,15.714]
[1731227242764,14.4106083,204.8,204.65,15.714]
[1731227242947,14.31061174,204.71,204.65,15.714]
[1731227243144,14.31061174,204.71,204.65,30.02461174]
[1731227243869,14.31061174,204.71,204.65,34.14440427]
[1731227244775,14.31061174,204.73,204.67,14.31061174]
[1731227246055,14.31061174,204.72,204.66,38.08749574]
[1731227247869,14.31061174,204.8,204.67,14.31061174]
[1731227247870,14.31061174,204.73,204.67,14.31061174]
[1731227248866,14.31061174,204.77,204.71,14.31061174]
[1731227249071,14.31061174,204.76,204.7,14.31061174]
[1731227249249,14.31061174,204.75,204.69,14.31061174]
[1731227249854,14.31061174,204.74,204.68,14.31061174]
[1731227250267,14.31061174,204.75,204.69,14.31061174]
[1731227250476,14.31061174,204.74,204.68,14.31061174]
[1731227251350,14.31061174,204.76,204.7,14.31061174]
[1731227251653,14.31061174,204.75,204.69,14.31061174]
[1731227251974,14.31061174,204.73,204.66,23.776884]
[1731227252167,14.31061174,204.73,204.68,23.776884]
[1731227252375,14.31061174,204.74,204.68,14.31061174]
[1731227252851,14.31061174,204.73,204.68,14.31061174]
[1731227253051,14.31061174,204.73,204.67,14.31061174]
[1731227253250,14.31061174,204.73,204.68,23.776884]
[1731227253752,14.31061174,204.73,204.67,14.31061174]
[1731227254167,14.31061174,204.74,204.68,14.31061174]
[1731227254373,14.31061174,204.75,204.65,15.714]
[1731227254549,14.31061174,204.75,204.69,14.31061174]
[1731227255265,14.31061174,204.74,204.68,14.31061174]
[1731227255768,14.31061174,204.74,204.66,23.776884]
[1731227255769,14.31061174,204.75,204.69,14.31061174]
[1731227255965,14.31061174,204.8,204.73,14.31061174]
[1731227256162,14.31061174,204.83,204.77,14.31061174]
[1731227256461,14.31061174,204.84,204.79,14.31061174]
[1731227256660,14.31061174,204.83,204.77,14.31061174]
[1731227256849,14.31061174,204.81,204.75,14.31061174]
[1731227257053,14.31061174,204.8,204.73,15.5077]
[1731227257365,14.31061174,204.78,204.73,29.81831174]
[1731227258272,14.31061174,204.78,204.73,15.5077]
[1731227258570,14.31061174,204.79,204.73,29.81831174]
[1731227259880,14.31061174,204.8,204.74,14.31061174]
[1731227260249,14.31061174,204.8,204.75,14.31061174]
[1731227260454,14.31061174,204.8,204.73,15.5077]
[1731227260455,14.31061174,204.82,204.77,14.31061174]
[1731227260651,14.31061174,204.85,204.79,14.31061174]
[1731227261170,14.31061174,204.84,204.79,14.31061174]
[1731227261357,14.31061174,204.84,204.78,9.14223655]
[1731227261358,9.14223655,204.84,204.78,9.14223655]
[1731227262477,9.14223655,204.83,204.77,9.14223655]
[1731227263356,14.28537548,204.84,204.78,14.28537548]
[1731227263558,14.28537548,204.83,204.78,14.28537548]
[1731227264455,14.28537548,204.83,204.77,14.28537548]
[1731227265568,14.28537548,204.84,204.78,14.28537548]
[1731227266178,14.28537548,204.85,204.79,14.28537548]
[1731227266376,14.28537548,204.84,204.78,14.28537548]
[1731227267892,14.28537548,204.83,204.78,14.28537548]
[1731227268175,14.28537548,204.83,204.77,14.28537548]
[1731227269982,14.28537548,204.8,204.74,38.06225948]
[1731227270568,14.28537548,204.79,204.73,29.79307548]
[1731227272879,14.28537548,204.86,204.78,14.28537548]
[1731227273079,14.28537548,204.86,204.8,14.28537548]
[1731227273578,16.3726,204.89,204.74,33.90014428]
[1731227273579,14.28537548,204.84,204.78,14.28537548]
[1731227273758,14.28537548,204.83,204.77,14.28537548]
[1731227274173,14.28537548,204.84,204.78,14.28537548]
[1731227274879,14.28537548,204.86,204.8,14.28537548]
[1731227275870,16.3726,204.89,204.74,29.03014428]
[1731227275871,14.28537548,204.85,204.74,29.03014428]
[1731227276073,14.28537548,204.85,204.79,14.28537548]
[1731227276661,14.28537548,204.83,204.77,14.28537548]
[1731227277185,14.28537548,204.85,204.79,14.28537548]
[1731227281083,14.28537548,204.8,204.68,38.9106]
[1731227281262,14.28537548,204.78,204.72,14.28537548]
[1731227281685,0.12549,204.81,204.68,22.538]
[1731227281984,14.28537548,204.72,204.68,22.538]
[1731227282483,14.28537548,204.74,204.68,36.82337548]
[1731227282701,16.0433,204.82,204.68,22.538]
[1731227282859,14.28537548,204.79,204.73,14.28537548]
[1731227283566,14.28537548,204.78,204.72,14.28537548]
[1731227283967,14.28537548,204.77,204.71,14.28537548]
[1731227285363,14.28537548,204.75,204.69,14.28537548]
[1731227285569,14.28537548,204.75,204.69,38.06225948]
[1731227285785,14.28537548,204.76,204.7,14.28537548]
[1731227286783,14.28537548,204.77,204.7,14.28537548]
[1731227287283,14.28537548,204.77,204.71,14.28537548]
[1731227289191,14.28537548,204.78,204.72,14.28537548]
[1731227289394,14.28537548,204.8,204.74,14.28537548]
[1731227293183,14.28537548,204.8,204.75,14.28537548]
[1731227293398,14.28537548,204.82,204.76,14.28537548]
[1731227293591,14.38537204,204.9,204.79,14.28537548]
[1731227293592,14.28537548,204.85,204.79,14.28537548]
[1731227294393,14.28537548,204.9,204.76,6.2213]
[1731227294394,14.28537548,204.8,204.76,6.2213]
[1731227294585,14.28537548,204.8,204.74,14.28537548]
[1731227295199,14.28537548,204.78,204.72,14.28537548]
[1731227296091,14.28537548,204.76,204.71,21.7665]
[1731227297177,14.28537548,204.75,204.69,14.28537548]
[1731227297377,14.28537548,204.8,204.66,21.7665]
[1731227297378,14.28537548,204.74,204.68,14.28537548]
[1731227298892,14.28537548,204.74,204.66,21.7665]
[1731227299098,14.28537548,204.74,204.67,38.06225948]
[1731227299395,14.28537548,204.74,204.68,14.28537548]
[1731227304092,14.28537548,204.7,204.64,14.28537548]
[1731227304278,14.28537548,204.69,204.63,14.28537548]
[1731227304483,14.28537548,204.69,204.62,0.84150754]
[1731227304681,14.28537548,204.68,204.62,0.84150754]
[1731227304883,14.28537548,204.69,204.63,14.28537548]
[1731227305081,14.28537548,204.7,204.64,14.28537548]
[1731227305298,14.28537548,204.71,204.64,14.28537548]
[1731227306378,14.28537548,204.7,204.64,14.28537548]
[1731227307080,14.28537548,204.69,204.63,14.28537548]
[1731227309197,14.28537548,204.7,204.63,14.28537548]
[1731227309583,14.28537548,204.69,204.63,14.28537548]
[1731227310102,14.28537548,204.68,204.62,14.28537548]
[1731227310699,14.28537548,204.69,204.63,38.06225948]
[1731227310880,14.28537548,204.71,204.65,14.28537548]
[1731227311075,14.28537548,204.7,204.64,14.28537548]
[1731227311500,14.28537548,204.72,204.66,14.28537548]
[1731227312383,14.28537548,204.71,204.65,14.28537548]
[1731227313405,14.28537548,204.7,204.64,14.28537548]
[1731227314189,14.28537548,204.67,204.61,23.776884]
[1731227314498,14.28537548,204.68,204.62,14.28537548]
[1731227314799,14.28537548,204.69,204.63,23.776884]
[1731227315508,14.28537548,204.68,204.63,23.776884]
[1731227315888,14.28537548,204.69,204.63,23.776884]
[1731227316209,14.28537548,204.69,204.63,38.06225948]
[1731227316499,14.28537548,204.69,204.63,14.28537548]
[1731227316699,14.28537548,204.69,204.62,14.28537548]
[1731227316907,14.28537548,204.68,204.61,38.06225948]
[1731227317611,14.28537548,204.68,204.62,14.28537548]
[1731227317779,14.28537548,204.68,204.61,38.06225948]
[1731227317979,14.28537548,204.67,204.61,38.06225948]
[1731227318178,14.28537548,204.68,204.61,38.06225948]
[1731227318390,14.28537548,204.69,204.62,14.28537548]
[1731227319088,14.28537548,204.69,204.63,14.28537548]
[1731227319290,14.28537548,204.7,204.63,14.28537548]
[1731227320497,14.28537548,204.69,204.63,14.28537548]
[1731227321911,14.28537548,204.68,204.61,23.776884]
[1731227322114,14.28537548,204.66,204.6,37.52767548]
[1731227322294,14.28537548,204.66,204.6,23.2423]
[1731227322806,14.28537548,204.67,204.61,14.28537548]
[1731227323494,14.28537548,204.66,204.6,23.2423]
[1731227323691,14.28537548,204.64,204.6,23.2423]
[1731227325109,14.28537548,204.66,204.6,37.52767548]
[1731227325306,14.28537548,204.67,204.61,14.28537548]
[1731227327013,14.28537548,204.66,204.6,27.44999968]
[1731227327211,23.902374,204.75,204.61,14.28537548]
[1731227327514,14.28537548,204.68,204.63,14.28537548]
[1731227328513,14.28537548,204.68,204.62,14.28537548]
[1731227329616,14.28537548,204.67,204.61,14.28537548]
[1731227330319,23.902374,204.75,204.63,14.28537548]
[1731227330494,14.28537548,204.68,204.62,14.28537548]